Cogmind - Beta 16 @@@ ROGUE MODE // 2025.10.25 @ 12:06:41 Player: CowMind Result: Destroyed by Y-45 Defender with Beam Rifle Performance ------------- Evolutions (0) 0 Regions Visited (4) 800 Robots Destroyed (2) 10 Value Destroyed (68) 68 Prototype IDs (0) 0 Alien Tech Used (0) 0 Bonus (50) 50 TOTAL SCORE: 928 Bonus ------- Follower Combat Kills 50 Cogmind --------- Core Integrity 0/250 Matter 235/300 Energy 99/100 System Corruption 10% Temperature Cool (9) Movement Core (100) Ox1 Location -9/Mines Parts ------- > --- POWER (1) -------- (None) > --- PROPULSION (2) --- (None) > --- UTILITY (2) ------ Small Storage Unit > --- WEAPON (2) ------- (None) > --- INVENTORY (8) ---- Ion Engine EM Pulse Gun Bore Cannon Mining Laser Peak State ------------ > --- POWER ------------ Ion Engine > --- PROPULSION ------- Aluminum Leg Aluminum Leg > --- UTILITY ---------- Small Storage Unit Small Storage Unit > --- WEAPON ----------- Medium Laser Light Assault Rifle > --- INVENTORY -------- Ion Engine Aluminum Leg Aluminum Leg EM Pulse Gun Bore Cannon Grenade Launcher Mining Laser [Rating: 8] Favorites ----------- Power Ion Engine Engine Ion Engine Propulsion Aluminum Leg Leg Aluminum Leg Utility Small Storage Unit Storage Small Storage Unit Weapon Medium Laser Energy Gun Medium Laser Ballistic Gun Light Assault Rifle Launcher Grenade Launcher Build | -11 -10 -10 -10 -9 ------- Run | Yrd Mat Min Exi Min Slots Evolved . | . . . . . Power . | . . . . . Propulsion . | . . . . . Utility . | . . . . . Weapon . | . . . . . Parts Attached 10 | 6 1 . . 3 Power 1 | 1 . . . . Engine 1 | 1 . . . . Core . | . . . . . Reactor . | . . . . . Propulsion 4 | 2 . . . 2 Treads . | . . . . . Leg 4 | 2 . . . 2 Wheel . | . . . . . Hover . | . . . . . Flight . | . . . . . Utility 2 | 1 1 . . . Device . | . . . . . Storage 2 | 1 1 . . . Processor . | . . . . . Hackware . | . . . . . Protection . | . . . . . Artifact . | . . . . . Weapon 3 | 2 . . . 1 Energy Gun 1 | 1 . . . . Energy Cannon . | . . . . . Ballistic Gun 1 | 1 . . . . Ballistic Cannon . | . . . . . Launcher 1 | . . . . 1 Special Weapon . | . . . . . Impact Weapon . | . . . . . Slashing Weapon . | . . . . . Piercing Weapon . | . . . . . Special Melee Weapon . | . . . . . Unidentified Prototypes . | . . . . . Parts Lost 8 | . . . . 8 Power 1 | . . . . 1 Propulsion 4 | . . . . 4 Utility . | . . . . . Weapon 3 | . . . . 3 Highest Loss Streak 8 | . . . . 8 To Critical Strikes . | . . . . . Average Backups 5 | 1 3 6 7 6 Power . | . 1 1 1 1 Propulsion 1 | . . 2 2 1 Utility . | . . . . . Weapon 3 | . 1 3 4 3 Tool/Special . | . . . . . Unused Backups 4 | . . . . 4 Power 1 | . . . . 1 Propulsion . | . . . . . Utility . | . . . . . Weapon 3 | . . . . 3 Tool/Special . | . . . . . Average Slot Usage (%) 94 | . 98 100 100 87 Engine 12 | . 14 14 14 11 Leg 26 | . 28 28 28 24 Storage 26 | . 26 28 28 26 Energy Gun 13 | . 14 14 14 12 Ballistic Gun 13 | . 14 14 14 11 Peak Build Rating 8 | 6 7 8 8 8 Average Rating 7 | 4 6 7 8 7 On Entrance 5 | . 6 7 8 8 Avg Prop Armor Cover (%) . | . . . . . Naked Turns . | . . . . . Heaviest Build 18 | 13 18 18 18 18 Greatest Support 20 | 20 20 20 20 20 Greatest Overweight (x) 1 | 1 . . . 1 Average Overweight (x) . | . . . . . Largest Inventory Capacity 8 | 8 8 8 8 8 Average Capacity 7 | 6 8 8 8 8 Most Carried 7 | 2 6 7 7 7 Average Carried 5 | 1 3 6 7 6 Final Capacity 8 | 8 8 8 8 8 Final Carried 7 | 2 6 7 7 4 Class Distribution -------------------- 100% | Mutant Dominant Class ---------------- Mutant | -10/Materials Mutant | -10/Mines Mutant | -10/Exiles Mutant | -9/Mines Resources | -11 -10 -10 -10 -9 ----------- Run | Yrd Mat Min Exi Min Matter Collected 278 | 168 86 . . 24 Remotely . | . . . . . Salvage Created 99 | . 86 . . 13 Parts 4 | . 4 . . . Haulers Intercepted . | . . . . . Recyclers Shooed 1 | . . . . 1 Parts Field Recycled . | . . . . . Retrieved Matter . | . . . . . Parts Self-Destructed . | . . . . . Prevented . | . . . . . Parts Restored . | . . . . . Kills | -11 -10 -10 -10 -9 ------- Run | Yrd Mat Min Exi Min Combat Hostiles Destroyed 6 | . 2 . . 4 Guns 2 | . 2 . . . AOE 4 | . . . . 4 Classes Destroyed 2 | . 1 . . 1 Grunt 2 | . 2 . . . Assembled 4 | . . . . 4 Best Kill Streak 4 | . 2 . . 4 Combat Bots Only 4 | . 2 . . 4 Max Kills in Single Turn 2 | . 1 . . 2 Gunslinging . | . . . . . Exploded 2 | . . . . 2 Melee . | . . . . . Uniques/NPCs Destroyed . | . . . . . Combat | -11 -10 -10 -10 -9 -------- Run | Yrd Mat Min Exi Min Hostile Shots Fired 87 | . 14 . . 73 Missed 36 | . 1 . . 35 Hits 51 | . 13 . . 38 Melee 7 | . . . . 7 Projectile 44 | . 13 . . 31 AOE 4 | . . . . 4 Critical Strikes 1 | . . . . 1 Damage Taken 991 | . 144 . . 847 Core 264 | . 11 . . 253 Absorbed by Shields . | . . . . . Core Remaining (%) 100 | 100 . . . . Volleys Fired 18 | . 11 . . 7 Largest 2 | . 2 . . 2 Hottest 70 | . 70 . . 70 Shots Fired 31 | . 22 . . 9 Gun 27 | . 22 . . 5 Cannon . | . . . . . Launcher 4 | . . . . 4 Special . | . . . . . Kinetic 13 | . 11 . . 2 Thermal 14 | . 11 . . 3 Explosive 4 | . . . . 4 Electromagnetic . | . . . . . Robot Hit Streak 6 | . 6 . . 3 Robot Miss Streak 2 | . 2 . . 2 Penetration Max . | . . . . . Secondary Targets . | . . . . . Shots Hit Robots 19 | . 14 . . 5 Core Hits 11 | . 4 . . 7 Critical Kills . | . . . . . Critical Parts Destroyed . | . . . . . Critical Strikes 1 | . 1 . . . Burn 1 | . 1 . . . Melee Attacks . | . . . . . Impact . | . . . . . Slashing . | . . . . . Piercing . | . . . . . Sneak Attacks . | . . . . . Combat Hostiles . | . . . . . Follow-up Attacks . | . . . . . Damage Inflicted 505 | . 150 . . 355 Guns 171 | . 150 . . 21 Cannons . | . . . . . Explosions 333 | . . . . 333 Melee . | . . . . . Ramming 1 | . . . . 1 Kinetic 94 | . 86 . . 8 Thermal 77 | . 64 . . 13 Explosive 333 | . . . . 333 Electromagnetic . | . . . . . Impact . | . . . . . Slashing . | . . . . . Piercing . | . . . . . Highest Corruption 10 | . . . . 10 Average Corruption 8 | . . . . 8 Corruption Purged . | . . . . . Corruption Blocked . | . . . . . Effects 2 | . . . . 2 Message Errors 1 | . . . . 1 Parts Rejected 1 | . . . . 1 Overload Shots . | . . . . . Overflow Damage 15 | . . . . 15 Projectiles . | . . . . . Explosions 15 | . . . . 15 Melee . | . . . . . Knockbacks . | . . . . . Impact . | . . . . . Kinetic . | . . . . . Secondary . | . . . . . Self-Inflicted Damage 120 | . . . . 120 Shots 3 | . . . . 3 Rammed . | . . . . . Targets Rammed 1 | . . . . 1 Kicked 1 | . . . . 1 Crushed . | . . . . . Highest Temperature 232 | . 232 . . 57 Average Temperature 106 | . 117 . . 26 Received Heat Transfer 258 | . 78 . . 180 Siege Activations . | . . . . . Martial Activations . | . . . . . Shielding Activations . | . . . . . Robots Disrupted . | . . . . . Combat Hostiles . | . . . . . Robots Corrupted . | . . . . . Combat Hostiles . | . . . . . Parts Fried . | . . . . . Impact Corruptions . | . . . . . Robots Melted . | . . . . . Combat Hostiles . | . . . . . Parts Melted 1 | . 1 . . . Heat Transferred 296 | . 259 . . 37 Parts Sabotaged . | . . . . . Parts Stolen . | . . . . . Parts Stripped . | . . . . . Power Chain Reactions . | . . . . . Alert | -11 -10 -10 -10 -9 ------- Run | Yrd Mat Min Exi Min Maximum Alert Level . | . . . . . Low Security (%) 100 | 100 100 100 . 100 Level 1 . | . . . . . Level 2 . | . . . . . Level 3 . | . . . . . Level 4 . | . . . . . Level 5 . | . . . . . High Security . | . . . . . Max Security . | . . . . . Peak Influence 51 | . 40 21 . 51 Initial . | . . . . . Average 6 | . 8 . . 12 Influence Increases 262 | . 56 21 . 185 Destroy 0b10 Robot/C 80 | . 40 20 . 20 Destroy Leader 10 | . 10 . . . Allied During Kill 2 | . . 1 . 1 Successful Hack 6 | . 6 . . . Destroy Structure 29 | . . . . 29 Lose Combat Pursuer 135 | . . . . 135 Influence Decreases 262 | . 56 . 21 185 Entered New Map 21 | . . . 21 . Time Decay 153 | . 46 . . 107 Lost Part 58 | . . . . 58 Lost Ally 30 | . 10 . . 20 Squads Dispatched 2 | . 1 1 . . Investigation . | . . . . . Extermination . | . . . . . Reinforcement 1 | . 1 . . . Assault 1 | . . 1 . . Garrison . | . . . . . Intercept . | . . . . . Searches Triggered . | . . . . . Construction Impeded . | . . . . . Haulers Reinforced . | . . . . . Active Scanning Responses . | . . . . . Cargo Convoy Interrupts . | . . . . . Stealth | -11 -10 -10 -10 -9 --------- Run | Yrd Mat Min Exi Min Distress Signals . | . . . . . Communications Jammed . | . . . . . Distress Signals . | . . . . . Times Spotted 39 | . 6 1 . 32 Peak Tracking Total 20 | . 3 4 . 20 Tactical Retreats 7 | . . . . 7 Traps | -11 -10 -10 -10 -9 ------- Run | Yrd Mat Min Exi Min Traps Triggered . | . . . . . Indirectly . | . . . . . Trap Hack Attempts . | . . . . . Triggered . | . . . . . Disarmed . | . . . . . Reprogrammed . | . . . . . Reused . | . . . . . Traps Extracted . | . . . . . Installed . | . . . . . Triggered . | . . . . . Machines | -11 -10 -10 -10 -9 ---------- Run | Yrd Mat Min Exi Min Machines Disabled . | . . . . . Max in Single Turn . | . . . . . Machines Repaired . | . . . . . Machines Dismantled . | . . . . . Machines Sabotaged . | . . . . . Overloaded Fab Kills . | . . . . . Hacking | -11 -10 -10 -10 -9 --------- Run | Yrd Mat Min Exi Min Machines Accessed 4 | . 4 . . . Terminals 4 | . 4 . . . Fabricators . | . . . . . Repair Stations . | . . . . . Recycling Units . | . . . . . Scanalyzers . | . . . . . Garrison Access . | . . . . . Total Hacks 12 | . 12 . . . Successful 7 | . 7 . . . Failed 5 | . 5 . . . Catastrophic . | . . . . . Database Lockouts . | . . . . . Manual 12 | . 12 . . . Terminals 12 | . 12 . . . Fabricators . | . . . . . Repair Stations . | . . . . . Recycling Units . | . . . . . Scanalyzers . | . . . . . Garrison Access . | . . . . . Terminal Hacks 2 | . 2 . . . Terminal Index 1 | . 1 . . . Zone Layout 1 | . 1 . . . Fabricator Hacks . | . . . . . Repair Station Hacks . | . . . . . Recycling Unit Hacks . | . . . . . Scanalyzer . | . . . . . Garrison Access Hacks . | . . . . . Unauthorized Hacks 5 | . 5 . . . Terminals 5 | . 5 . . . Track 1 | . 1 . . . Assimilate 1 | . 1 . . . Botnet 3 | . 3 . . . Fabricators . | . . . . . Repair Stations . | . . . . . Recycling Units . | . . . . . Scanalyzers . | . . . . . Garrison Access . | . . . . . Data Cores Recovered . | . . . . . Used . | . . . . . Hacking Detections 4 | . 4 . . . Full Trace Events . | . . . . . Feedback Events . | . . . . . Feedback Blocked . | . . . . . Robot Schematics Acquired . | . . . . . Robots Built . | . . . . . Authchips . | . . . . . Time . | . . . . . Total Robot Build Rating . | . . . . . Part Schematics Acquired . | . . . . . Parts Built . | . . . . . Authchips . | . . . . . Time . | . . . . . Total Part Build Rating . | . . . . . Part Studies Acquired . | . . . . . Parts Repaired . | . . . . . Time . | . . . . . Parts Recycled . | . . . . . Recycled Matter . | . . . . . Retrieved Matter . | . . . . . Retrieved Components . | . . . . . Parts Scanalyzed . | . . . . . Part Schematics Acquired . | . . . . . Parts Damaged . | . . . . . Bothacking | -11 -10 -10 -10 -9 ------------ Run | Yrd Mat Min Exi Min Used RIF Installer . | . . . . . Robots Hacked . | . . . . . Non-combat . | . . . . . Combat . | . . . . . Robot Hacks Applied . | . . . . . Relay Couplers Released . | . . . . . Fabnet Peak Effective % . | . . . . . Robots Rewired . | . . . . . Allies Hacked . | . . . . . Hacks Repelled . | . . . . . Allies | -11 -10 -10 -10 -9 -------- Run | Yrd Mat Min Exi Min Total Allies 2 | . 1 1 . . Largest Group 1 | . 1 1 1 1 Highest-Rated Group 31 | . 10 31 31 31 Highest-Rated Ally 31 | . 10 31 31 31 Total Orders 1 | . 1 . . . ROAM 1 | . 1 . . . Ally Attacks 10 | . . 2 . 8 Total Damage 171 | . . 22 . 149 Kills 2 | . . 1 . 1 Allies Corrupted . | . . . . . Allies Melted . | . . . . . Intel | -11 -10 -10 -10 -9 ------- Run | Yrd Mat Min Exi Min Active Infowar (turns) . | . . . . . Robot Analysis Total . | . . . . . Derelict Logs Recovered 3 | . . 2 . 1 Drone Launches . | . . . . . Drone Recoveries . | . . . . . Exploration | -11 -10 -10 -10 -9 ------------- Run | Yrd Mat Min Exi Min Turns Passed 969 | 62 200 338 34 335 Spaces Moved 744 | 45 133 278 29 259 Core 26 | 4 . . . 22 Treads . | . . . . . Legs 718 | 41 133 278 29 237 Wheels . | . . . . . Hover . | . . . . . Flight . | . . . . . Fastest Speed 50 | 50 120 120 120 100 Average Speed 119 | 116 120 120 120 119 Slowest Speed 190 | 120 120 120 120 190 Overloaded Moves . | . . . . . Propulsion Burnouts . | . . . . . Robots Hopped . | . . . . . Potential Cave-ins . | . . . . . Cave-ins Triggered . | . . . . . Exploration Rate (%) 35 | 4 28 63 8 75 Regions Visited 4 Branch Regions 3 Pre-discovered Areas 1 | . . 1 . . Known Exits Taken . | . . . . . Unknown Exits Taken 4 | 1 1 1 1 . Scrap Searched . | . . . . . Spaces Dug . | . . . . . Terrain Destroyed 30 | . . . . 30 Melee . | . . . . . Projectile . | . . . . . AOE 30 | . . . . 30 Terrain Rammed . | . . . . . Walls Destroyed . | . . . . . Machines Disabled . | . . . . . Actions | -11 -10 -10 -10 -9 --------- Run | Yrd Mat Min Exi Min Total 793 | 52 153 282 28 278 Wait 14 | . 5 4 . 5 Move 740 | 44 132 277 28 259 Hop . | . . . . . Pick Up 8 | 2 4 1 . 1 Fast Attach 7 | 6 1 . . . Attach 4 | . . . . 4 Detach . | . . . . . Swap . | . . . . . Drop 1 | . . . . 1 Fire 18 | . 11 . . 7 Melee . | . . . . . Ram . | . . . . . Kick 1 | . . . . 1 Crush . | . . . . . Escape Stasis . | . . . . . Rewire . | . . . . . Trap . | . . . . . Miscellaneous . | . . . . . Route ------- -11/Scrapyard -10/Materials -10/Mines -10/Exiles -9/Mines History --------- Turn | Location | Event 29 | -11/Scrapyard | Discovered new exit (range 16) 63 | -11/Scrapyard | Entered Materials 237 | -10/Materials | Discovered new exit (range 16) 263 | -10/Materials | Entered Mines 264 | -10/Mines | Met a Derelict testing a Signal Generator 281 | -10/Mines | A weapon hastily lodged in a ceiling crevice suddenly fell to the ground 298 | -10/Mines | Learned Materials interactive machine intel 306 | -10/Mines | Build established: Mutant 588 | -10/Mines | Deemed a non-threat by the Exiles lab entrance 588 | -10/Mines | Discovered new exit (range 5) 601 | -10/Mines | Entered Exiles 601 | -10/Exiles | Accompanied by 1 ally 618 | -10/Exiles | Discovered new exit (range 15) 635 | -10/Exiles | Entered Mines 635 | -9/Mines | Accompanied by 1 ally 877 | -9/Mines | Learned Materials terminal intel 894 | -9/Mines | Assembled infested the area 899 | -9/Mines | Assisted by a Guerilla fighting off Assembled 922 | -9/Mines | System corruption reached 10% 942 | -9/Mines | Core integrity fell below 50% 950 | -9/Mines | Core integrity fell below 20% 970 | -9/Mines | Destroyed by Y-45 Defender with Beam Rifle Last Messages --------------- 00940_ Destroyed Asb. F-torch. 00942_ Destroyed Asb. Hover Unit. 00942_ as-02969 destroyed. 00942_ as-50345 destroyed. 00942_ Aluminum Leg destroyed. 00942_ Destroyed Aluminum Leg. 00944_ as-75635 destroyed. 00945_ C-45 Heavy ARC bursts open, deploying its payload. 00945_ D-53 Grenadier unfolds itself. 00947_ as-91913 destroyed. 00947_ as-51433 destroyed. 00947_ Grenade Launcher destroyed. 00949_ Aluminum Leg destroyed. 00949_ as-62523 destroyed. 00949_ as-46998 destroyed. 00949_ D-53 Grenadier destroyed. 00950_ 1G8HY84LIMDD3OYS,RUG 10P4 AIT DCL%E5L2Q 00951_ as-78864 destroyed. 00952_ D-53 Grenadier destroyed. Map ----- +----------------------------------------------------+ | #??? #?# ??????# #??????????###????## | | ##???? #?###??????? ??????????????????# | | ## #????# #??????????? ??????????????????# | | ?## #????# #??????????? ??????????????????## | | ??# #????# #??????????? ??????????????????## | | ??# ##????# #??????????? ????????????????### | | ?## #?????# #??????????# ?????########### | | ## #?????# #??????????# ###### # != | | #??#### #????????????"% !%! # | | #### ###???????????# %= ## | | ## ##?????????## ! #? | | # #?????????# ]% % ##? | | ## ##########?# %! #?? | | ?## ## #?# ######?? | | ### ###### ## #?# # ## ##??????? | | #????## ### #?## ## ## #??????????? | | #?????# ### #??##?###?# #??????????? | | ### ######## #?????????# #??????????? | | ??# ### #??######## #??????????? | | ??# #?## ### #??# #??????????? | | ??####### #??###?#########??# ########??????????? | | ?????????? #????????###?###### ###???????????????? | | ???????????????????##"Y## #???????????????? | | ???????????????????#"" # #???????????????? | | ???????????????????#!/ / #???????????????? | | ???????????????????#!! /@ #???????????????? | | ???????????????????#"" $# #???????????????? | | ???????????????????##"??# #???????????????? | | ????????????????????????# #???????????????? | | ????????????????????????# #???????????????? | | ????????????????????????##########???????????????? | | ?????????????????????????????????????????????????? | | ?????????????????????????????????????????????????? | | | | | | | | | | | | | | | | | | | | | | | | | | | | | | | | | | | +----------------------------------------------------+ Best States ------------- Heat Dissipation 25 Energy Generation 10 Energy Capacity 250 Matter Stores 300 Matter Capacity 300 Sight Range 16 Terrain Scan Density 10 Evasion (%) 55 Item Schematics ----------------- None Robot Schematics ------------------ None Fabricated ------------ Nothing Repaired ---------- Nothing Studied --------- None Alien Tech Used ----------------- None Achievements -------------- None Challenges ------------ None Game ------ Seed ColdSkeletonFlakker Manual? 0 Play Time 00:11:07 Cumulative 35.8 hours Start 2025.10.25 @ 11:58:15 End 2025.10.25 @ 12:06:41 Sessions 1 Manual Loads 0 Difficulty Rogue Special Mode None Game No. 35 Rogue 23 Adventurer 1 Explorer 11 Win Type - Total 2 Types 1/0/1/0/0/0/0/0/0/0 Lore% 17 Gallery% 28 Achievement% 35 Wizard Run 0 Options --------- Layout 1 ASCII 0 Keyboard 0 Movement Numpad Keybinds 0 Fullscreen 1 Font 24/Smallcaps Map View 50x35 Zoom Use 0% Tactical HUD 1 Map Filters NONE Filters NONE Steam 1 RUN: 917c814a-0fc9-4fc9-95e5-1a85189aee62